[Event "*** MasterClass Titled Tuesday Blitz"]
[Site "Chess.com"]
[Date "2017.11.07"]
[Round "3"]
[White "Khamrakulov_Djurabek"]
[Black "tigra"]
[Result "1/2-1/2"]
[WhiteElo "2618"]
[BlackElo "2651"]
[TimeControl "180+2"]
[EndTime "14:51:00 PST"]
[Termination "Game drawn by stalemate"]

1. e4 {[%clk 0:03:01.1]} 1... c5 {[%clk 0:02:57.4]} 2. c3 {[%clk 0:03:01.8]}
2... Nf6 {[%clk 0:02:57.9]} 3. e5 {[%clk 0:03:02.4]} 3... Nd5 {[%clk 0:02:59]}
4. d3 {[%clk 0:03:03.3]} 4... Nc6 {[%clk 0:02:59.1]} 5. Nf3 {[%clk 0:03:04]}
5... g6 {[%clk 0:02:59.1]} 6. d4 {[%clk 0:03:02.4]} 6... cxd4 {[%clk 0:02:59.6]}
7. cxd4 {[%clk 0:03:03.5]} 7... Bg7 {[%clk 0:02:59.8]} 8. Qb3 {[%clk 0:03:02.4]}
8... Nb6 {[%clk 0:03:00.4]} 9. Bf4 {[%clk 0:03:00.9]} 9... d6 {[%clk 0:02:35.3]}
10. Nc3 {[%clk 0:02:51.8]} 10... O-O {[%clk 0:02:18]} 11. Rd1 {[%clk 0:02:48.9]}
11... Bg4 {[%clk 0:02:16.8]} 12. Be2 {[%clk 0:02:47.3]} 12... Bxf3 {[%clk
0:02:11.4]} 13. Bxf3 {[%clk 0:02:47.9]} 13... dxe5 {[%clk 0:02:12.6]} 14. dxe5
{[%clk 0:02:41.3]} 14... Nd4 {[%clk 0:02:13.3]} 15. Rxd4 {[%clk 0:02:26.2]}
15... Qxd4 {[%clk 0:02:13.8]} 16. Be3 {[%clk 0:02:27.5]} 16... Qc4 {[%clk
0:02:04.4]} 17. Bxb7 {[%clk 0:01:35.8]} 17... Qxb3 {[%clk 0:01:54.4]} 18. axb3
{[%clk 0:01:35.5]} 18... Rab8 {[%clk 0:01:56]} 19. Ba6 {[%clk 0:01:29.2]} 19...
Bxe5 {[%clk 0:01:55.8]} 20. Ke2 {[%clk 0:01:29.3]} 20... Rfd8 {[%clk 0:01:54.7]}
21. Ra1 {[%clk 0:01:24.6]} 21... Bd4 {[%clk 0:01:45.5]} 22. Bf4 {[%clk
0:01:16.8]} 22... e5 {[%clk 0:01:36.8]} 23. Bg5 {[%clk 0:01:17.7]} 23... Rd7
{[%clk 0:01:34.5]} 24. Ne4 {[%clk 0:01:11.9]} 24... Nd5 {[%clk 0:01:33.1]} 25.
Bc4 {[%clk 0:01:12.3]} 25... Kg7 {[%clk 0:01:33.2]} 26. Ra5 {[%clk 0:01:12.4]}
26... Nf4+ {[%clk 0:01:19.9]} 27. Kf3 {[%clk 0:01:10.3]} 27... Rb6 {[%clk
0:01:18.1]} 28. Bxf4 {[%clk 0:00:45.9]} 28... exf4 {[%clk 0:01:18.7]} 29. Kxf4
{[%clk 0:00:47.3]} 29... f5 {[%clk 0:01:11.7]} 30. Nc5 {[%clk 0:00:36.8]} 30...
Re7 {[%clk 0:01:02.3]} 31. Kf3 {[%clk 0:00:28.4]} 31... Rd6 {[%clk 0:00:54.9]}
32. Nd3 {[%clk 0:00:25.4]} 32... Bb6 {[%clk 0:00:47.7]} 33. Rb5 {[%clk
0:00:26.4]} 33... Re4 {[%clk 0:00:44.7]} 34. Nf4 {[%clk 0:00:21.4]} 34... Rd2
{[%clk 0:00:41.7]} 35. Ne2 {[%clk 0:00:21.4]} 35... Kf6 {[%clk 0:00:35.4]} 36.
h3 {[%clk 0:00:21.6]} 36... Rxb2 {[%clk 0:00:28.7]} 37. g4 {[%clk 0:00:22]}
37... Re5 {[%clk 0:00:18.8]} 38. g5+ {[%clk 0:00:22.7]} 38... Kxg5 {[%clk
0:00:18.8]} 39. Rxe5 {[%clk 0:00:24.3]} 39... Kh4 {[%clk 0:00:19.4]} 40. Re7
{[%clk 0:00:23.7]} 40... h5 {[%clk 0:00:19.1]} 41. Rh7 {[%clk 0:00:22]} 41... g5
{[%clk 0:00:19.8]} 42. Be6 {[%clk 0:00:18.9]} 42... g4+ {[%clk 0:00:20.4]} 43.
hxg4 {[%clk 0:00:19.7]} 43... fxg4+ {[%clk 0:00:20.1]} 44. Kf4 {[%clk
0:00:17.1]} 44... Rxe2 {[%clk 0:00:16.2]} 45. Bxg4 {[%clk 0:00:18]} 45... Rxf2+
{[%clk 0:00:08.3]} 46. Bf3 {[%clk 0:00:19]} 46... Rxf3+ {[%clk 0:00:08.7]} 47.
Kxf3 {[%clk 0:00:20.2]} 47... Bc5 {[%clk 0:00:10.3]} 48. Rg7 {[%clk 0:00:17.7]}
48... Bb6 {[%clk 0:00:11.3]} 49. Kg2 {[%clk 0:00:18.3]} 49... Bc5 {[%clk
0:00:12]} 50. Rg6 {[%clk 0:00:19.5]} 50... Bb6 {[%clk 0:00:12.8]} 51. b4 {[%clk
0:00:20.7]} 51... Bd4 {[%clk 0:00:13.4]} 52. Kf3 {[%clk 0:00:21.5]} 52... Bb6
{[%clk 0:00:13.9]} 53. Rg2 {[%clk 0:00:21.9]} 53... Kh3 {[%clk 0:00:14]} 54.
Rg3+ {[%clk 0:00:22.4]} 54... Kh4 {[%clk 0:00:14.5]} 55. Rg6 {[%clk 0:00:21.7]}
55... Kh3 {[%clk 0:00:14.4]} 56. Rg5 {[%clk 0:00:21.1]} 56... h4 {[%clk
0:00:15.2]} 57. Rg2 {[%clk 0:00:22]} 57... Bd4 {[%clk 0:00:15.4]} 58. Rd2 {[%clk
0:00:22.7]} 58... Bb6 {[%clk 0:00:16.4]} 59. Re2 {[%clk 0:00:21.6]} 59... Bd4
{[%clk 0:00:16.9]} 60. Rc2 {[%clk 0:00:21.9]} 60... Bb6 {[%clk 0:00:17.8]} 61.
Rd2 {[%clk 0:00:23.4]} 61... Bg1 {[%clk 0:00:18.6]} 62. Rd1 {[%clk 0:00:24.6]}
62... Kh2 {[%clk 0:00:19.7]} 63. Kg4 {[%clk 0:00:23.9]} 63... Bf2 {[%clk
0:00:20.2]} 64. Kf3 {[%clk 0:00:23.2]} 64... Bg1 {[%clk 0:00:20.8]} 65. Rd2+
{[%clk 0:00:23.8]} 65... Kh3 {[%clk 0:00:21.6]} 66. b5 {[%clk 0:00:20.1]} 66...
Bc5 {[%clk 0:00:22.1]} 67. Rc2 {[%clk 0:00:20.5]} 67... Bb6 {[%clk 0:00:23.1]}
68. Rc4 {[%clk 0:00:21.3]} 68... Bg1 {[%clk 0:00:23.3]} 69. Rg4 {[%clk
0:00:20.9]} 69... Bf2 {[%clk 0:00:22.9]} 70. Rg2 {[%clk 0:00:17.8]} 70... Bc5
{[%clk 0:00:23.4]} 71. Ra2 {[%clk 0:00:17.6]} 71... Bb6 {[%clk 0:00:24.3]} 72.
Ra4 {[%clk 0:00:18.4]} 72... Bc5 {[%clk 0:00:24.4]} 73. Kf4 {[%clk 0:00:19.1]}
73... Bf2 {[%clk 0:00:24.4]} 74. Ra3+ {[%clk 0:00:17.2]} 74... Kg2 {[%clk
0:00:21.5]} 75. Kg4 {[%clk 0:00:18.4]} 75... Kg1 {[%clk 0:00:19.2]} 76. Kf3
{[%clk 0:00:13.6]} 76... Bc5 {[%clk 0:00:19.6]} 77. Ra2 {[%clk 0:00:12.2]} 77...
Bb6 {[%clk 0:00:14.4]} 78. Rg2+ {[%clk 0:00:10.9]} 78... Kh1 {[%clk 0:00:13.6]}
79. Rc2 {[%clk 0:00:11.4]} 79... Kg1 {[%clk 0:00:13.3]} 80. Kg4 {[%clk
0:00:11.9]} 80... Bf2 {[%clk 0:00:13.7]} 81. Kf3 {[%clk 0:00:11.7]} 81... Bb6
{[%clk 0:00:14.2]} 82. Rg2+ {[%clk 0:00:12.1]} 82... Kh1 {[%clk 0:00:14.6]} 83.
Rg6 {[%clk 0:00:12.3]} 83... Kh2 {[%clk 0:00:14.3]} 84. Kg4 {[%clk 0:00:12.6]}
84... Bf2 {[%clk 0:00:15.1]} 85. Rc6 {[%clk 0:00:12.3]} 85... Kg2 {[%clk
0:00:15.2]} 86. Rc3 {[%clk 0:00:13.3]} 86... Kg1 {[%clk 0:00:15]} 87. Kh3 {[%clk
0:00:13.5]} 87... Kf1 {[%clk 0:00:15.6]} 88. Rc2 {[%clk 0:00:12.6]} 88... Ke1
{[%clk 0:00:16.5]} 89. Ra2 {[%clk 0:00:13.2]} 89... Kf1 {[%clk 0:00:16.5]} 90.
Rb2 {[%clk 0:00:14.2]} 90... Ke1 {[%clk 0:00:17.3]} 91. Rc2 {[%clk 0:00:15.4]}
91... Kf1 {[%clk 0:00:18.2]} 92. Ra2 {[%clk 0:00:16.5]} 92... Ke1 {[%clk
0:00:19.1]} 93. Kg2 {[%clk 0:00:17.7]} 93... Bb6 {[%clk 0:00:18.8]} 94. Ra4
{[%clk 0:00:18.7]} 94... Kd2 {[%clk 0:00:19.2]} 95. Rxh4 {[%clk 0:00:19.1]}
95... Kd3 {[%clk 0:00:19.5]} 96. Kf3 {[%clk 0:00:19.8]} 96... Bd4 {[%clk
0:00:20.4]} 97. Rg4 {[%clk 0:00:19.4]} 97... Kc4 {[%clk 0:00:20.4]} 98. Ke2
{[%clk 0:00:20.4]} 98... Kc3 {[%clk 0:00:21.2]} 99. Kd1 {[%clk 0:00:19.4]} 99...
Bc5 {[%clk 0:00:20.8]} 100. Kc1 {[%clk 0:00:19.7]} 100... Bb6 {[%clk 0:00:22]}
101. Kb1 {[%clk 0:00:20.3]} 101... Kb3 {[%clk 0:00:23.3]} 102. Re4 {[%clk
0:00:20.5]} 102... Bc5 {[%clk 0:00:23.9]} 103. Rh4 {[%clk 0:00:19.5]} 103... Bb6
{[%clk 0:00:24.8]} 104. Kc1 {[%clk 0:00:20.7]} 104... Bc5 {[%clk 0:00:25.3]}
105. Kd2 {[%clk 0:00:21.4]} 105... Bb6 {[%clk 0:00:26.1]} 106. Kd3 {[%clk
0:00:22.6]} 106... Bc5 {[%clk 0:00:25.5]} 107. Rg4 {[%clk 0:00:23.7]} 107... Bb6
{[%clk 0:00:24.8]} 108. Rc4 {[%clk 0:00:23.4]} 108... Bf2 {[%clk 0:00:24.3]}
109. Rc1 {[%clk 0:00:23.4]} 109... Kb4 {[%clk 0:00:25.2]} 110. Rb1+ {[%clk
0:00:24.1]} 110... Kc5 {[%clk 0:00:26.5]} 111. Rb2 {[%clk 0:00:23.8]} 111... Bg3
{[%clk 0:00:26.8]} 112. Rg2 {[%clk 0:00:22.5]} 112... Bf4 {[%clk 0:00:26.1]}
113. Rg4 {[%clk 0:00:21.5]} 113... Bd6 {[%clk 0:00:26.3]} 114. Rg5+ {[%clk
0:00:21.4]} 114... Kb4 {[%clk 0:00:27.2]} 115. Kd4 {[%clk 0:00:22]} 115... Bf4
{[%clk 0:00:27.7]} 116. Rf5 {[%clk 0:00:21.3]} 116... Bh2 {[%clk 0:00:27.4]}
117. Rd5 {[%clk 0:00:19.5]} 117... Bg1+ {[%clk 0:00:27.9]} 118. Ke4 {[%clk
0:00:20.6]} 118... Bc5 {[%clk 0:00:28.5]} 119. Kd3 {[%clk 0:00:17.5]} 119...
Kxb5 {[%clk 0:00:29.3]} 120. Kc3 {[%clk 0:00:18.8]} 120... Kc6 {[%clk
0:00:30.4]} 121. Kc4 {[%clk 0:00:20.1]} 121... Bb6 {[%clk 0:00:31.4]} 122. Rh5
{[%clk 0:00:20.4]} 122... Kb7 {[%clk 0:00:30.9]} 123. Kb5 {[%clk 0:00:20.9]}
123... a6+ {[%clk 0:00:32]} 124. Kc4 {[%clk 0:00:21.4]} 124... Ba7 {[%clk
0:00:33.4]} 125. Rh7+ {[%clk 0:00:21.5]} 125... Ka8 {[%clk 0:00:34.1]} 126. Kd5
{[%clk 0:00:22]} 126... Bb8 {[%clk 0:00:32.4]} 127. Kc6 {[%clk 0:00:21.4]}
127... a5 {[%clk 0:00:33.6]} 128. Kb6 {[%clk 0:00:07.5]} 128... a4 {[%clk
0:00:34.1]} 129. Rh4 {[%clk 0:00:07.5]} 129... Ba7+ {[%clk 0:00:34.6]} 130. Kc7
{[%clk 0:00:08]} 130... Bb8+ {[%clk 0:00:35.8]} 131. Kc8 {[%clk 0:00:08.7]}
131... a3 {[%clk 0:00:36.6]} 132. Ra4+ {[%clk 0:00:08.8]} 132... Ba7 {[%clk
0:00:37.7]} 133. Rxa3 {[%clk 0:00:08.2]} 1/2-1/2

[Event "*** MasterClass Titled Tuesday Blitz"]
[Site "Chess.com"]
[Date "2017.11.07"]
[Round "3"]
[White "krzyzan94"]
[Black "BilodeauA"]
[Result "1-0"]
[WhiteElo "2591"]
[BlackElo "2797"]
[TimeControl "180+2"]
[EndTime "14:52:35 PST"]
[Termination "krzyzan94 won by resignation"]

1. e4 {[%clk 0:03:01.9]} 1... c5 {[%clk 0:03:00.6]} 2. Nf3 {[%clk 0:03:02.7]}
2... Nc6 {[%clk 0:03:01.6]} 3. d4 {[%clk 0:03:02.8]} 3... cxd4 {[%clk
0:03:03.2]} 4. Nxd4 {[%clk 0:03:04.7]} 4... Nf6 {[%clk 0:03:04.2]} 5. Nc3 {[%clk
0:03:05.9]} 5... d6 {[%clk 0:03:05.6]} 6. Bg5 {[%clk 0:03:06.4]} 6... e6 {[%clk
0:03:06.3]} 7. Qd2 {[%clk 0:03:06.2]} 7... a6 {[%clk 0:03:07.4]} 8. O-O-O {[%clk
0:03:06.9]} 8... Bd7 {[%clk 0:03:08.6]} 9. f4 {[%clk 0:03:05.9]} 9... b5 {[%clk
0:03:09.2]} 10. Nxc6 {[%clk 0:02:47.8]} 10... Bxc6 {[%clk 0:03:09.7]} 11. e5
{[%clk 0:02:49.5]} 11... dxe5 {[%clk 0:03:10.8]} 12. Qxd8+ {[%clk 0:02:50]}
12... Rxd8 {[%clk 0:03:12.7]} 13. Rxd8+ {[%clk 0:02:51.3]} 13... Kxd8 {[%clk
0:03:14.6]} 14. fxe5 {[%clk 0:02:51.4]} 14... h6 {[%clk 0:03:16]} 15. Bh4 {[%clk
0:02:50.9]} 15... g5 {[%clk 0:03:17.5]} 16. Bg3 {[%clk 0:02:24.9]} 16... Nh5
{[%clk 0:03:10.8]} 17. Bf2 {[%clk 0:02:14.1]} 17... Bg7 {[%clk 0:03:08]} 18. Bd4
{[%clk 0:02:14.5]} 18... Kc7 {[%clk 0:03:04]} 19. Rg1 {[%clk 0:02:13.7]} 19...
Rd8 {[%clk 0:03:02.3]} 20. Ne2 {[%clk 0:02:14.6]} 20... Nf4 {[%clk 0:03:00.2]}
21. Bc3 {[%clk 0:02:01.9]} 21... Nd5 {[%clk 0:02:37.7]} 22. Bd4 {[%clk
0:01:44.9]} 22... Ne7 {[%clk 0:02:37.8]} 23. g3 {[%clk 0:01:15.7]} 23... Ng6
{[%clk 0:02:36.5]} 24. Bc3 {[%clk 0:01:12]} 24... Kb6 {[%clk 0:02:32.6]} 25. Nd4
{[%clk 0:01:05.9]} 25... Bd5 {[%clk 0:02:08.8]} 26. a4 {[%clk 0:00:55.7]} 26...
bxa4 {[%clk 0:02:04.8]} 27. Be2 {[%clk 0:00:31.8]} 27... Bxe5 {[%clk 0:02:00.1]}
28. Rf1 {[%clk 0:00:32.4]} 28... Bb7 {[%clk 0:01:46.1]} 29. Rd1 {[%clk
0:00:16.3]} 29... Rc8 {[%clk 0:01:43.2]} 30. Bh5 {[%clk 0:00:16.9]} 30... a3
{[%clk 0:01:41.4]} 31. Bxg6 {[%clk 0:00:16.7]} 31... fxg6 {[%clk 0:01:38.6]} 32.
Kb1 {[%clk 0:00:17.2]} 32... axb2 {[%clk 0:01:33.1]} 33. Kxb2 {[%clk 0:00:19.1]}
33... Rc4 {[%clk 0:01:28.3]} 34. Ne2 {[%clk 0:00:17.6]} 34... Bc7 {[%clk
0:01:13.1]} 35. Bd4+ {[%clk 0:00:17.6]} 35... Kc6 {[%clk 0:01:11.5]} 36. Bg7
{[%clk 0:00:18.6]} 36... Re4 {[%clk 0:00:52.9]} 37. Nd4+ {[%clk 0:00:19.5]}
37... Kb6 {[%clk 0:00:54.1]} 38. Nb3 {[%clk 0:00:19.3]} 38... h5 {[%clk
0:00:47.3]} 39. Bf6 {[%clk 0:00:20.1]} 39... Be5+ {[%clk 0:00:46.8]} 40. Bxe5
{[%clk 0:00:21.2]} 40... Rxe5 {[%clk 0:00:48.7]} 41. Rd6+ {[%clk 0:00:22.7]}
41... Kc7 {[%clk 0:00:48.7]} 42. Rd2 {[%clk 0:00:23.1]} 42... h4 {[%clk
0:00:49]} 43. Rd4 {[%clk 0:00:19.9]} 43... h3 {[%clk 0:00:47.3]} 44. Rd2 {[%clk
0:00:20.4]} 44... g4 {[%clk 0:00:47.6]} 45. Nd4 {[%clk 0:00:21.7]} 45... Re3
{[%clk 0:00:44.6]} 46. c4 {[%clk 0:00:22.5]} 46... Kb6 {[%clk 0:00:43.4]} 47.
Nb3 {[%clk 0:00:22.8]} 47... Re1 {[%clk 0:00:40.4]} 48. Nd4 {[%clk 0:00:20.7]}
48... e5 {[%clk 0:00:38.4]} 49. Ne6 {[%clk 0:00:21.3]} 49... Bf3 {[%clk
0:00:34.8]} 50. Kc3 {[%clk 0:00:22.1]} 50... Kc6 {[%clk 0:00:34]} 51. Nd8+
{[%clk 0:00:22.7]} 51... Kc7 {[%clk 0:00:33.9]} 52. Ne6+ {[%clk 0:00:24.6]}
52... Kb7 {[%clk 0:00:33.9]} 53. Nd8+ {[%clk 0:00:25.5]} 53... Kb6 {[%clk
0:00:34.1]} 54. Ne6 {[%clk 0:00:27.2]} 54... Rc1+ {[%clk 0:00:33.6]} 55. Kb4
{[%clk 0:00:28.1]} 55... a5+ {[%clk 0:00:34.3]} 56. Kb3 {[%clk 0:00:29.4]} 56...
a4+ {[%clk 0:00:34.3]} 57. Kb4 {[%clk 0:00:30.4]} 57... a3 {[%clk 0:00:32.3]}
58. c5+ {[%clk 0:00:31.7]} 58... Kc6 {[%clk 0:00:30.6]} 59. Rd6+ {[%clk
0:00:32.7]} 59... Kb7 {[%clk 0:00:31.3]} 60. Rd7+ {[%clk 0:00:34.2]} 60... Kc8
{[%clk 0:00:25.8]} 61. Rd8+ {[%clk 0:00:35.1]} 61... Kb7 {[%clk 0:00:27.3]} 62.
Rd7+ {[%clk 0:00:37]} 62... Kb8 {[%clk 0:00:26.3]} 63. Kxa3 {[%clk 0:00:35.4]}
63... Bc6 {[%clk 0:00:25.1]} 64. Rd8+ {[%clk 0:00:35.8]} 64... Kb7 {[%clk
0:00:26.1]} 65. Rd6 {[%clk 0:00:37]} 65... Bf3 {[%clk 0:00:22.6]} 66. Kb4 {[%clk
0:00:37.3]} 66... Rb1+ {[%clk 0:00:23.9]} 67. Kc3 {[%clk 0:00:38.4]} 67... Rc1+
{[%clk 0:00:25.1]} 68. Kb2 {[%clk 0:00:39.2]} 68... Rh1 {[%clk 0:00:25.7]} 69.
Kc3 {[%clk 0:00:39.1]} 69... Rc1+ {[%clk 0:00:25]} 70. Kb4 {[%clk 0:00:39.8]}
70... Be2 {[%clk 0:00:24.8]} 71. Nd8+ {[%clk 0:00:39.2]} 71... Kc8 {[%clk
0:00:25.2]} 72. Ne6 {[%clk 0:00:39.8]} 72... Rc4+ {[%clk 0:00:25.5]} 73. Ka5
{[%clk 0:00:39.7]} 73... Bf3 {[%clk 0:00:18.4]} 74. Rd8+ {[%clk 0:00:40.8]}
74... Kb7 {[%clk 0:00:18.6]} 75. Rd7+ {[%clk 0:00:42.4]} 75... Kb8 {[%clk
0:00:20.2]} 76. Kb6 {[%clk 0:00:37]} 76... Rb4+ {[%clk 0:00:21.2]} 77. Ka5
{[%clk 0:00:38]} 77... Rb7 {[%clk 0:00:21.5]} 78. Rd8+ {[%clk 0:00:36.3]} 78...
Ka7 {[%clk 0:00:22.8]} 79. Rd6 {[%clk 0:00:36.4]} 79... Re7 {[%clk 0:00:20.8]}
80. c6 {[%clk 0:00:33.9]} 80... Bxc6 {[%clk 0:00:11.3]} 81. Rxc6 {[%clk
0:00:34.9]} 81... e4 {[%clk 0:00:12.8]} 82. Nf4 {[%clk 0:00:35.3]} 82... e3
{[%clk 0:00:13.7]} 83. Ne2 {[%clk 0:00:35.3]} 83... Rf7 {[%clk 0:00:13.2]} 84.
Nd4 {[%clk 0:00:27]} 84... Rf2 {[%clk 0:00:13]} 85. Re6 {[%clk 0:00:22.8]} 85...
Rxh2 {[%clk 0:00:11.5]} 86. Re7+ {[%clk 0:00:23.4]} 86... Kb8 {[%clk 0:00:12.9]}
87. Kb6 {[%clk 0:00:25]} 87... Rb2+ {[%clk 0:00:13.3]} 88. Nb5 {[%clk 0:00:22]}
88... Kc8 {[%clk 0:00:11.4]} 89. Rxe3 {[%clk 0:00:19]} 89... h2 {[%clk
0:00:12.9]} 90. Re8+ {[%clk 0:00:19.6]} 90... Kd7 {[%clk 0:00:14]} 91. Rh8
{[%clk 0:00:21.5]} 91... Ke6 {[%clk 0:00:14.8]} 92. Kc5 {[%clk 0:00:22.6]} 92...
Ke5 {[%clk 0:00:15.8]} 93. Nc3 {[%clk 0:00:22.7]} 93... Kf5 {[%clk 0:00:15.4]}
94. Kd4 {[%clk 0:00:23.4]} 94... Rg2 {[%clk 0:00:15.8]} 95. Ne4 {[%clk
0:00:23.6]} 95... Ra2 {[%clk 0:00:14.9]} 96. Nd6+ {[%clk 0:00:22.9]} 96... Kf6
{[%clk 0:00:14.8]} 97. Ne4+ {[%clk 0:00:23.8]} 97... Kg7 {[%clk 0:00:16.2]} 98.
Rh4 {[%clk 0:00:23.5]} 98... Kf7 {[%clk 0:00:17.6]} 99. Ng5+ {[%clk 0:00:23.6]}
99... Kf6 {[%clk 0:00:18.5]} 100. Ne4+ {[%clk 0:00:24.6]} 100... Kf5 {[%clk
0:00:20.1]} 101. Nd6+ {[%clk 0:00:24.2]} 101... Kg5 {[%clk 0:00:21.5]} 102. Ne4+
{[%clk 0:00:24.6]} 102... Kf5 {[%clk 0:00:22.8]} 103. Nd6+ {[%clk 0:00:24.3]}
103... Ke6 {[%clk 0:00:23.9]} 104. Ne4 {[%clk 0:00:21.4]} 104... Ra4+ {[%clk
0:00:25]} 105. Ke3 {[%clk 0:00:20.5]} 105... Ke5 {[%clk 0:00:26.2]} 106. Nf2
{[%clk 0:00:21.7]} 106... Ra3+ {[%clk 0:00:26.4]} 107. Nd3+ {[%clk 0:00:22.7]}
107... Kd5 {[%clk 0:00:26.7]} 108. Rxh2 {[%clk 0:00:24.2]} 108... Kc4 {[%clk
0:00:27.9]} 109. Rd2 {[%clk 0:00:24.3]} 109... Kd5 {[%clk 0:00:21.6]} 110. Kf2
{[%clk 0:00:22.8]} 110... Ke4 {[%clk 0:00:20.9]} 111. Nc5+ {[%clk 0:00:23.5]}
111... Ke5 {[%clk 0:00:21.5]} 112. Re2+ {[%clk 0:00:24.1]} 112... Kf5 {[%clk
0:00:22.3]} 113. Rb2 {[%clk 0:00:21.5]} 113... Rc3 {[%clk 0:00:22.4]} 114. Na4
{[%clk 0:00:21.1]} 114... Ra3 {[%clk 0:00:22.6]} 115. Rb5+ {[%clk 0:00:22.1]}
115... Ke4 {[%clk 0:00:23.2]} 116. Nc5+ {[%clk 0:00:23.2]} 116... Kd5 {[%clk
0:00:24.2]} 117. Nb7+ {[%clk 0:00:20.3]} 117... Kc6 {[%clk 0:00:24.7]} 118. Rb2
{[%clk 0:00:21.2]} 118... Rf3+ {[%clk 0:00:24.2]} 119. Kg2 {[%clk 0:00:21.9]}
119... Rf5 {[%clk 0:00:24.3]} 120. Nd8+ {[%clk 0:00:22.5]} 120... Kd7 {[%clk
0:00:24.4]} 121. Rd2+ {[%clk 0:00:23.7]} 121... Ke7 {[%clk 0:00:24.5]} 122. Nc6+
{[%clk 0:00:24.8]} 122... Ke8 {[%clk 0:00:18.7]} 123. Rd6 {[%clk 0:00:23.6]}
123... Kf7 {[%clk 0:00:15]} 124. Rd4 {[%clk 0:00:23.7]} 124... Rg5 {[%clk
0:00:15.7]} 125. Rxg4 {[%clk 0:00:23.6]} 125... Rb5 {[%clk 0:00:15.1]} 126. Rf4+
{[%clk 0:00:24.3]} 126... Kg7 {[%clk 0:00:15.3]} 127. Nd4 {[%clk 0:00:25.6]}
127... Rb2+ {[%clk 0:00:16.4]} 128. Kf3 {[%clk 0:00:26.9]} 128... Kh6 {[%clk
0:00:18.3]} 129. Kg4 {[%clk 0:00:27.6]} 129... Rb1 {[%clk 0:00:18.3]} 130. Ne6
{[%clk 0:00:28]} 130... Rb6 {[%clk 0:00:18.9]} 131. Rf6 {[%clk 0:00:24.3]}
131... Ra6 {[%clk 0:00:18.3]} 132. Kh3 {[%clk 0:00:20.8]} 132... Rb6 {[%clk
0:00:19]} 133. g4 {[%clk 0:00:21.7]} 133... Rb1 {[%clk 0:00:16.9]} 134. g5+
{[%clk 0:00:19.1]} 134... Kh5 {[%clk 0:00:15.8]} 135. Kg3 {[%clk 0:00:20.4]}
135... Rb3+ {[%clk 0:00:14.8]} 136. Kf4 {[%clk 0:00:21.6]} 136... Rb4+ {[%clk
0:00:16]} 137. Ke5 {[%clk 0:00:23.1]} 137... Rb5+ {[%clk 0:00:17.4]} 138. Kd6
{[%clk 0:00:24.2]} 138... Rb7 {[%clk 0:00:16.9]} 139. Rf1 {[%clk 0:00:20.5]}
139... Kg4 {[%clk 0:00:17.7]} 140. Ke5 {[%clk 0:00:20.7]} 140... Kh5 {[%clk
0:00:13.7]} 141. Kf6 {[%clk 0:00:21.8]} 141... Rb6 {[%clk 0:00:10.3]} 142. Rh1+
{[%clk 0:00:18.1]} 142... Kg4 {[%clk 0:00:11.3]} 143. Rh6 {[%clk 0:00:19.7]}
143... Rb1 {[%clk 0:00:08.6]} 144. Rxg6 {[%clk 0:00:20.5]} 144... Rf1+ {[%clk
0:00:10.3]} 145. Ke7 {[%clk 0:00:21.4]} 145... Re1 {[%clk 0:00:11.8]} 146. Rf6
{[%clk 0:00:22.3]} 146... Kh5 {[%clk 0:00:13.2]} 147. g6 {[%clk 0:00:22]} 147...
Ra1 {[%clk 0:00:11.9]} 148. g7 {[%clk 0:00:22.6]} 148... Ra7+ {[%clk 0:00:13.6]}
149. Kd6 {[%clk 0:00:22.4]} 149... Ra8 {[%clk 0:00:10.7]} 150. Rf8 {[%clk
0:00:22]} 150... Ra6+ {[%clk 0:00:11.8]} 151. Ke7 {[%clk 0:00:22.7]} 151... Ra7+
{[%clk 0:00:11.4]} 152. Kf6 {[%clk 0:00:23.7]} 152... Kh6 {[%clk 0:00:06.1]}
153. g8=Q {[%clk 0:00:20.9]} 153... Rf7+ {[%clk 0:00:06.7]} 154. Rxf7 {[%clk
0:00:20.5]} 1-0

[Event "*** MasterClass Titled Tuesday Blitz"]
[Site "Chess.com"]
[Date "2017.11.07"]
[Round "4"]
[White "champ2005"]
[Black "chessdude"]
[Result "1/2-1/2"]
[WhiteElo "2461"]
[BlackElo "2487"]
[TimeControl "180+2"]
[EndTime "14:54:10 PST"]
[Termination "Game drawn by repetition"]

1. e4 {[%clk 0:03:01.9]} 1... e5 {[%clk 0:02:59.4]} 2. Nf3 {[%clk 0:03:02.6]}
2... Nc6 {[%clk 0:02:58.6]} 3. Bb5 {[%clk 0:03:02]} 3... a6 {[%clk 0:02:58.3]}
4. Ba4 {[%clk 0:03:02.9]} 4... Nf6 {[%clk 0:02:59]} 5. O-O {[%clk 0:03:04]} 5...
Be7 {[%clk 0:02:59.8]} 6. Re1 {[%clk 0:03:04.1]} 6... b5 {[%clk 0:03:00.3]} 7.
Bb3 {[%clk 0:03:05.1]} 7... d6 {[%clk 0:03:01.5]} 8. c3 {[%clk 0:03:06.1]} 8...
O-O {[%clk 0:03:02.6]} 9. h3 {[%clk 0:03:07.3]} 9... Re8 {[%clk 0:03:01.1]} 10.
Ng5 {[%clk 0:03:05.8]} 10... Rf8 {[%clk 0:03:01.7]} 11. Nf3 {[%clk 0:03:06.6]}
11... Re8 {[%clk 0:03:02.5]} 12. Ng5 {[%clk 0:03:06.2]} 12... Rf8 {[%clk
0:03:03.6]} 13. Nf3 {[%clk 0:03:07.3]} 13... Re8 {[%clk 0:03:02]} 14. Ng5 {[%clk
0:03:08]} 14... Rf8 {[%clk 0:03:02.9]} 15. Nf3 {[%clk 0:03:04.9]} 15... Re8
{[%clk 0:03:03.1]} 16. Ng5 {[%clk 0:03:06]} 1/2-1/2

[Event "*** MasterClass Titled Tuesday Blitz"]
[Site "Chess.com"]
[Date "2017.11.07"]
[Round "4"]
[White "wonderfultime"]
[Black "ChainsOfFantasia"]
[Result "1-0"]
[WhiteElo "2764"]
[BlackElo "2496"]
[TimeControl "180+2"]
[EndTime "14:56:56 PST"]
[Termination "wonderfultime won by checkmate"]

1. d4 {[%clk 0:03:01.9]} 1... Nf6 {[%clk 0:03:00.9]} 2. Bf4 {[%clk 0:03:01.8]}
2... g6 {[%clk 0:03:01.3]} 3. Nf3 {[%clk 0:03:02.9]} 3... Bg7 {[%clk 0:03:03.2]}
4. h3 {[%clk 0:02:59.9]} 4... O-O {[%clk 0:03:04.7]} 5. e3 {[%clk 0:03:01.3]}
5... d6 {[%clk 0:03:06.6]} 6. Be2 {[%clk 0:03:02.4]} 6... c5 {[%clk 0:03:08.1]}
7. c3 {[%clk 0:03:03.7]} 7... b6 {[%clk 0:03:09.3]} 8. O-O {[%clk 0:03:04.7]}
8... Bb7 {[%clk 0:03:10.9]} 9. Nbd2 {[%clk 0:03:06.2]} 9... a6 {[%clk
0:03:12.4]} 10. a4 {[%clk 0:03:07.6]} 10... Nbd7 {[%clk 0:03:13.7]} 11. Re1
{[%clk 0:03:09.1]} 11... Ra7 {[%clk 0:03:15.1]} 12. Bh2 {[%clk 0:03:10]} 12...
Qa8 {[%clk 0:03:16.6]} 13. Qb3 {[%clk 0:03:10.4]} 13... h6 {[%clk 0:03:16.3]}
14. Bd3 {[%clk 0:03:09.9]} 14... Ne4 {[%clk 0:03:14.5]} 15. Bf1 {[%clk
0:03:01.4]} 15... Rb8 {[%clk 0:03:12.4]} 16. Nxe4 {[%clk 0:02:59.1]} 16... Bxe4
{[%clk 0:03:14.3]} 17. Nd2 {[%clk 0:03:01]} 17... Bd5 {[%clk 0:03:13.8]} 18. Qc2
{[%clk 0:02:57.2]} 18... b5 {[%clk 0:03:10.8]} 19. e4 {[%clk 0:02:43]} 19... Bb7
{[%clk 0:03:07.9]} 20. axb5 {[%clk 0:02:38.3]} 20... axb5 {[%clk 0:03:09.8]} 21.
Rxa7 {[%clk 0:02:38.9]} 21... Qxa7 {[%clk 0:03:11.7]} 22. Bxb5 {[%clk
0:02:40.4]} 22... Bxe4 {[%clk 0:03:09.8]} 23. Qxe4 {[%clk 0:02:28.2]} 23... Rxb5
{[%clk 0:03:09.7]} 24. Qxe7 {[%clk 0:02:29.1]} 24... Rxb2 {[%clk 0:03:10.2]} 25.
Nc4 {[%clk 0:02:27]} 25... Rb8 {[%clk 0:02:54.8]} 26. Nxd6 {[%clk 0:02:10.3]}
26... cxd4 {[%clk 0:02:47.4]} 27. Qxf7+ {[%clk 0:02:09.4]} 27... Kh7 {[%clk
0:02:47.2]} 28. Be5 {[%clk 0:01:54.8]} 28... Rg8 {[%clk 0:02:29.7]} 29. Ne8
{[%clk 0:01:54]} 29... Nxe5 {[%clk 0:02:27.1]} 30. Nf6+ {[%clk 0:01:54.3]} 30...
Kh8 {[%clk 0:02:26.2]} 31. Qxg8# {[%clk 0:01:56.2]} 1-0